bitfinex/quotes_BTCUSD_20250730
["timestamp","ask_amount","ask_price","bid_price","bid_amount"]
[1753894726726,6.98967394,117930.0,117920.0,0.11509857]
[1753894726951,6.99815347,117930.0,117920.0,0.11509857]
[1753894727332,6.98967444,117930.0,117920.0,0.11509857]
[1753894727689,7.07415174,117930.0,117920.0,0.11509857]
[1753894727897,6.98967444,117930.0,117920.0,0.11509857]
[1753894729060,6.98119484,117930.0,117920.0,0.11509857]
[1753894730035,6.38297762,117930.0,117920.0,0.11509857]
[1753894730246,6.26111762,117930.0,117920.0,0.11509857]
[1753894730514,6.71325599,117930.0,117920.0,0.11509857]
[1753894730722,6.70477704,117930.0,117920.0,0.11509857]
[1753894731175,6.71325599,117930.0,117920.0,0.11509857]
[1753894731395,6.70525599,117930.0,117920.0,0.11509857]
[1753894731809,6.26959657,117930.0,117920.0,0.11509857]
[1753894731991,6.71325599,117930.0,117920.0,0.11509857]
[1753894732743,6.72173509,117930.0,117920.0,0.11509857]
[1753894733279,6.7265295,117930.0,117920.0,0.11509857]
[1753894734454,1.7265295,117930.0,117920.0,0.11509857]
[1753894734616,6.74348777,117930.0,117920.0,0.11509857]
[1753894735426,6.73548777,117930.0,117920.0,0.11509857]
[1753894736550,1.73548777,117930.0,117920.0,0.11509857]
[1753894736751,6.73548777,117930.0,117920.0,0.11509857]
[1753894737524,1.73548777,117930.0,117920.0,0.11509857]
[1753894737927,6.73548777,117930.0,117920.0,0.11509857]
[1753894739977,6.29182835,117930.0,117920.0,0.11509857]
[1753894740124,6.7354877,117930.0,117920.0,0.11509857]
[1753894740839,6.74396694,117930.0,117920.0,0.11509857]
[1753894741401,6.73069343,117930.0,117920.0,0.11509857]
[1753894741621,6.82560077,117930.0,117920.0,0.11186857]
[1753894741820,6.81712117,117930.0,117920.0,0.11186857]
[1753894742076,7.01935539,117930.0,117920.0,0.03184857]
[1753894742221,7.03873702,117930.0,117920.0,0.03184857]
[1753894743659,7.03873702,117930.0,117920.0,0.07775857]
[1753894743660,6.27519646,117930.0,117920.0,0.07775857]
[1753894743976,6.72733498,117930.0,117920.0,0.07775857]
[1753894744174,6.74060872,117930.0,117920.0,0.07775857]
[1753894745765,6.74908832,117930.0,117920.0,0.07775857]
[1753894746497,6.74060872,117930.0,117920.0,0.07775857]
[1753894746701,6.82029828,117930.0,117920.0,0.07775857]
[1753894747379,6.6135031,117930.0,117920.0,0.07775857]
[1753894747685,6.53381354,117930.0,117920.0,0.07775857]
[1753894748627,6.70340567,117930.0,117920.0,0.07775857]
[1753894748773,6.53381354,117930.0,117920.0,0.07775857]
[1753894749122,6.53381347,117930.0,117920.0,0.07775857]
[1753894749706,6.54229307,117930.0,117920.0,0.07775857]
[1753894749921,6.542293,117930.0,117920.0,0.07775857]
[1753894751271,6.53381347,117930.0,117920.0,0.07775857]
[1753894752380,6.53381347,117930.0,117920.0,0.11015857]
[1753894753164,6.54229307,117930.0,117920.0,0.11015857]
[1753894754175,6.57036426,117930.0,117920.0,0.11015857]
[1753894754381,6.56188466,117930.0,117920.0,0.11015857]
[1753894754840,6.53381347,117930.0,117920.0,0.11015857]
[1753894755286,6.3792556,117930.0,117920.0,0.11015857]
[1753894755525,0.6611513,117930.0,117920.0,0.55910799]
[1753894755755,1.0011513,117930.0,117920.0,0.11544857]
[1753894755973,0.9977503,117930.0,117920.0,0.11544857]
[1753894756381,0.9967503,117930.0,117920.0,0.11444857]
[1753894756678,0.9957503,117930.0,117920.0,0.1148]
[1753894757106,0.9967503,117930.0,117920.0,0.1158]
[1753894758203,6.02169818,117930.0,117920.0,0.1158]
[1753894761405,5.9967503,117930.0,117920.0,0.1158]
[1753894761604,5.8676703,117930.0,117920.0,0.1158]
[1753894761800,0.502,117930.0,117920.0,0.55945942]
[1753894769881,0.502,117930.0,117920.0,0.1158]
[1753894770097,0.53194102,117930.0,117920.0,0.24165]
[1753894770304,0.54234582,117930.0,117920.0,0.24458]
[1753894770630,0.502,117930.0,117920.0,0.68823942]
[1753894771899,0.29615434,117930.0,117920.0,0.68823942]
[1753894781444,0.29615434,117930.0,117920.0,0.24458]
[1753894781641,0.29615434,117930.0,117920.0,0.68823942]
[1753894781847,0.29615434,117930.0,117920.0,0.24458]
[1753894782057,0.29615434,117930.0,117920.0,0.68823942]
[1753894786033,0.29615434,117930.0,117920.0,0.24458]
[1753894786216,0.29615434,117930.0,117920.0,0.68823942]
[1753894787050,0.29823434,117930.0,117920.0,0.11261]
[1753894787265,0.30140434,117930.0,117920.0,0.23955]
[1753894788612,0.30140434,117930.0,117920.0,0.24158]
[1753894789160,0.29823434,117930.0,117920.0,0.24158]
[1753894789335,0.29823434,117930.0,117920.0,0.68523942]
[1753894789675,0.29823434,117930.0,117920.0,0.24158]
[1753894789899,0.29823434,117930.0,117920.0,0.68523942]
[1753894792966,0.29823434,117930.0,117920.0,0.68816942]
[1753894793303,0.29823434,117930.0,117920.0,0.68384942]
[1753894794842,0.29615434,117930.0,117920.0,0.68384942]
[1753894795044,0.29615434,117930.0,117920.0,1.21198614]
[1753894795265,0.29615434,117930.0,117920.0,1.38159265]
[1753894795890,0.29515434,117930.0,117920.0,1.21098614]
[1753894796023,0.29415434,117930.0,117920.0,0.76632672]
[1753894796220,0.29515434,117930.0,117920.0,0.77132672]
[1753894796425,0.29615434,117930.0,117920.0,0.77332672]
[1753894796620,0.29615434,117930.0,117920.0,0.94293323]
[1753894797266,0.29615434,117930.0,117920.0,1.38659265]
[1753894797466,0.29615434,117930.0,117920.0,1.21698614]
[1753894798132,0.29615434,117930.0,117920.0,1.38659265]
[1753894800260,0.29615434,117930.0,117920.0,1.39507297]
[1753894800758,0.29615434,117930.0,117920.0,1.38659265]
[1753894801190,0.29615434,117930.0,117920.0,0.2006273]
[1753894801402,0.29615434,117930.0,117920.0,1.38655265]
[1753894802766,0.29615434,117930.0,117920.0,0.94289323]
[1753894804327,0.29615434,117930.0,117920.0,1.38655265]
[1753894805332,0.29615434,117930.0,117920.0,0.64428672]
[1753894806074,0.30111434,117930.0,117920.0,0.1956673]
[1753894806309,0.34407434,117930.0,117920.0,0.3246673]
[1753894806518,0.30111434,117930.0,117920.0,0.24019]
[1753894806855,0.30111434,117930.0,117920.0,0.68384942]
[1753894809131,0.30111434,117930.0,117920.0,0.68582942]
[1753894809336,0.29813434,117930.0,117920.0,0.68582942]
[1753894812295,0.29813434,117930.0,117920.0,0.68881942]
[1753894812701,0.29813434,117930.0,117920.0,0.68582942]
[1753894812903,0.30111434,117930.0,117920.0,0.68582942]
[1753894815277,0.29813434,117930.0,117920.0,0.68582942]
[1753894815452,0.29813434,117930.0,117920.0,0.68881942]
[1753894825887,0.29794863,117930.0,117920.0,0.68881942]
[1753894829140,0.29794863,117930.0,117920.0,0.24516]
[1753894829382,0.29794863,117930.0,117920.0,0.68881942]
[1753894830363,0.29794863,117930.0,117920.0,0.24516]
[1753894830810,0.29794863,117930.0,117920.0,0.68881942]
[1753894831927,0.29596863,117930.0,117920.0,0.94290323]
[1753894832727,0.29596863,117930.0,117920.0,1.38656265]
[1753894833343,0.29596863,117930.0,117920.0,1.39504283]
[1753894833558,0.29596863,117930.0,117920.0,1.38656265]
[1753894834095,0.29596863,117930.0,117920.0,1.39504297]
[1753894834389,0.29596863,117930.0,117920.0,1.38656265]
[1753894834614,0.29596863,117930.0,117920.0,1.39504297]
[1753894834821,0.29596863,117930.0,117920.0,1.38656265]
[1753894835017,0.29596863,117930.0,117920.0,1.39504297]
[1753894835592,0.29596863,117930.0,117920.0,1.38656265]
[1753894835799,0.29596863,117930.0,117920.0,1.3950429]
[1753894836114,0.29596863,117930.0,117920.0,1.42901322]
[1753894836554,0.29596863,117930.0,117920.0,1.42053297]
[1753894837711,0.29596863,117930.0,117920.0,1.42901322]
[1753894837912,0.29596863,117930.0,117920.0,1.41205265]
[1753894838162,0.29596863,117930.0,117920.0,0.96839323]
[1753894840342,0.29596863,117930.0,117920.0,0.97687355]
[1753894840555,0.29596863,117930.0,117920.0,0.96839323]
[1753894842584,0.29805863,117930.0,117920.0,0.39076381]
[1753894842711,0.29805863,117930.0,117920.0,0.96338323]
[1753894842936,0.29805863,117930.0,117920.0,0.96869323]
[1753894843751,0.29805863,117930.0,117920.0,0.94320323]
[1753894844177,0.29596863,117930.0,117920.0,1.42083197]
[1753894844399,0.29596863,117930.0,117920.0,0.94320323]
[1753894844899,0.29596863,117930.0,117920.0,0.96869223]
[1753894849364,0.29596863,117930.0,117920.0,0.52503281]
[1753894849628,0.29596863,117930.0,117920.0,0.96869223]
[1753894850597,0.08727445,117930.0,117920.0,0.96869223]
[1753894854331,0.08727445,117930.0,117920.0,1.46279168]
[1753894854588,0.08727445,117930.0,117920.0,1.4802407]
[1753894854888,0.36077443,117960.0,117950.0,0.16956337]
[1753894855089,0.00209,117960.0,117950.0,0.89335009]
[1753894855305,0.00319,117970.0,117950.0,0.46403067]
[1753894855541,0.00319,117970.0,117960.0,0.16431936]
[1753894855752,0.00529,117970.0,117960.0,0.65092878]
[1753894855956,0.00529,117970.0,117960.0,0.64880942]
[1753894856650,0.00529,117970.0,117960.0,0.20714]
[1753894856863,0.00577589,117970.0,117960.0,0.61560942]
[1753894857236,0.05036589,117970.0,117960.0,0.57265942]
[1753894857696,0.05036589,117970.0,117960.0,0.129]
[1753894857906,0.08326589,117970.0,117960.0,0.00211936]
[1753894858107,0.08326589,117970.0,117950.0,0.0844773]
[1753894858108,0.0653,117960.0,117950.0,0.0844773]
[1753894858314,0.0653,117960.0,117950.0,0.2139973]
[1753894858531,0.11512,117960.0,117950.0,0.2139973]
[1753894859270,0.11512,117960.0,117940.0,0.48660942]
[1753894859479,0.0684,117960.0,117940.0,0.0844773]
[1753894859709,0.11142,117950.0,117940.0,0.0844773]
[1753894859911,0.11352,117950.0,117940.0,0.2139973]
[1753894860112,0.08232,117950.0,117940.0,0.2139973]
[1753894860313,0.00523,117950.0,117940.0,0.70060672]
[1753894860471,0.001,117960.0,117940.0,0.73636672]
[1753894860666,0.001,117960.0,117950.0,0.49172896]
[1753894860875,0.0031,117960.0,117950.0,0.57607672]
[1753894861092,0.0031,117960.0,117950.0,0.60427672]
[1753894861353,0.00048589,117970.0,117950.0,0.80851009]
[1753894861582,0.00048589,117970.0,117960.0,0.93342571]
[1753894861796,0.00048589,117970.0,117960.0,0.93541571]
[1753894862227,0.00048589,117970.0,117960.0,0.49175629]
[1753894862438,0.00048589,117970.0,117960.0,0.93541571]
[1753894862692,0.00048589,117970.0,117960.0,0.94389308]
[1753894863113,0.00048589,117970.0,117960.0,1.3970298]
[1753894863362,0.00048589,117970.0,117960.0,1.4139839]
[1753894863806,0.00048589,117970.0,117960.0,1.4159839]
[1753894864463,0.00048589,117970.0,117960.0,0.51818812]
[1753894864680,0.00148589,117970.0,117960.0,1.4169839]
[1753894864891,0.00148589,117970.0,117960.0,1.3915525]
[1753894865512,0.00148589,117970.0,117960.0,0.94689308]
[1753894865722,0.00048589,117970.0,117960.0,0.96084754]
[1753894865932,0.00048589,117970.0,117960.0,0.50871096]
[1753894866158,0.00148589,117970.0,117960.0,1.40950703]
[1753894866370,0.00148589,117970.0,117960.0,1.44346419]
[1753894866578,0.00148589,117970.0,117960.0,1.4265098]
[1753894866819,0.00148589,117970.0,117960.0,0.99132761]
[1753894867056,0.00148589,117970.0,117960.0,1.00180477]
[1753894867258,0.00148589,117970.0,117960.0,1.01028171]
[1753894867544,0.00148589,117970.0,117960.0,1.45394113]
[1753894868413,0.00148589,117970.0,117960.0,1.44546419]
[1753894868550,0.00148589,117970.0,117960.0,1.45394085]
[1753894869647,0.00148589,117970.0,117960.0,1.45394092]
[1753894869807,0.00148589,117970.0,117960.0,1.45394056]
[1753894880481,0.00148589,117970.0,117960.0,1.49638958]
[1753894880604,0.00148589,117970.0,117960.0,1.83638958]
[1753894883002,0.00148589,117970.0,117960.0,1.70686958]
[1753894883353,0.00148589,117970.0,117960.0,1.83626958]
[1753894885019,0.00148589,117970.0,117960.0,1.80279257]
[1753894885210,0.00148589,117970.0,117960.0,1.82779257]
[1753894885669,0.00148589,117970.0,117960.0,1.38413315]
[1753894886220,0.00148589,117970.0,117960.0,1.82779257]
[1753894890977,0.46468467,118020.0,117970.0,0.17801127]
[1753894891197,4.855e-05,117990.0,117980.0,0.65981572]
[1753894891437,0.00205855,117990.0,117980.0,0.65769672]
[1753894891651,0.00205855,117990.0,117980.0,0.73211672]
[1753894892081,0.00205855,117990.0,117980.0,0.2574573]
[1753894892216,0.00205855,117990.0,117980.0,0.65769672]
[1753894892828,0.00305855,117990.0,117980.0,0.65969672]
[1753894893055,0.00608855,117990.0,117980.0,0.65969672]
[1753894893827,0.00608855,117990.0,117980.0,0.70511672]
[1753894894035,0.0308,118000.0,117980.0,0.70511672]
[1753894894212,0.0633,118000.0,117990.0,0.57533824]
[1753894894354,0.0308,118000.0,117990.0,0.65769672]
[1753894894982,0.0635,118000.0,117990.0,0.2140373]
[1753894895185,0.0635,118000.0,117990.0,0.65769672]
[1753894895789,0.0635,118000.0,117990.0,0.65969672]
[1753894896014,0.0308,118000.0,117990.0,0.65969672]
[1753894896169,0.0327,118010.0,117990.0,0.70311672]
[1753894896371,0.0641,118010.0,118000.0,0.13171864]
[1753894897804,0.0641,118010.0,118000.0,0.57537806]
[1753894898016,0.0641,118010.0,118000.0,0.57325942]
[1753894898344,0.0641,118010.0,118000.0,0.1296]
[1753894898721,0.0641,118010.0,118000.0,0.13171864]
[1753894899304,0.0641,118010.0,118000.0,0.13271864]
[1753894899496,0.0651,118010.0,118000.0,0.13271864]
[1753894900698,0.001,118010.0,118000.0,0.90997688]
[1753894900848,0.001,118010.0,118000.0,0.90785824]
[1753894901053,0.001,118010.0,118000.0,0.94035824]
[1753894901625,0.001,118010.0,118000.0,1.38401766]
[1753894901892,0.001,118010.0,118000.0,0.94035824]
[1753894902260,0.001,118010.0,118000.0,0.93935824]
[1753894902678,0.01533561,118020.0,118000.0,0.49569882]
[1753894902889,0.04833561,118020.0,118010.0,0.44577788]
[1753894903114,0.04833561,118020.0,118010.0,0.04648]
[1753894903325,0.04833561,118020.0,118010.0,0.49225788]
[1753894903526,0.04833561,118020.0,118010.0,0.49013942]
[1753894904255,0.01533561,118020.0,118010.0,0.74604388]
[1753894904458,4.858e-05,118020.0,118010.0,0.81691766]
[1753894904670,4.858e-05,118020.0,118010.0,0.81691759]
[1753894905081,4.858e-05,118020.0,118010.0,0.81691766]
[1753894905729,4.858e-05,118020.0,118010.0,0.81691773]
[1753894905951,4.858e-05,118020.0,118010.0,0.82739151]
[1753894906135,4.858e-05,118020.0,118010.0,0.82091773]
[1753894906642,4.858e-05,118020.0,118010.0,0.83786522]
[1753894906810,4.858e-05,118020.0,118010.0,0.82939151]
[1753894907058,4.858e-05,118020.0,118010.0,0.82091773]
[1753894907815,4.858e-05,118020.0,118010.0,0.82939151]
[1753894908229,4.858e-05,118020.0,118010.0,0.82091773]
[1753894908481,4.858e-05,118020.0,118010.0,0.82939151]
[1753894908691,4.858e-05,118020.0,118010.0,0.83786522]
[1753894909087,4.858e-05,118020.0,118010.0,0.81244388]
[1753894909289,4.858e-05,118020.0,118010.0,0.82091773]
[1753894909752,4.858e-05,118020.0,118010.0,0.82939144]
[1753894909945,4.858e-05,118020.0,118010.0,0.81244388]
[1753894910361,4.858e-05,118020.0,118010.0,0.64296672]
[1753894910585,0.03234858,118020.0,118010.0,0.0884773]
[1753894910806,0.06364858,118020.0,118010.0,0.2183973]
[1753894911451,0.06364858,118020.0,118010.0,0.134]
[1753894911688,0.53497254,118020.0,118010.0,0.134]
[1753894911921,0.53497254,118020.0,118010.0,0.004]
[1753894912129,0.507308,118020.0,118010.0,0.004]
[1753894912560,0.507308,118020.0,118000.0,0.13]
[1753894912756,0.0636,118010.0,118000.0,0.147342]
[1753894912967,0.0636,118010.0,118000.0,0.147382]
[1753894913828,0.0636,118010.0,118000.0,0.14950064]
[1753894914033,0.0636,118010.0,118000.0,0.15050064]
[1753894915359,0.0636,118010.0,118000.0,0.15150064]
[1753894917882,0.0636,118010.0,118000.0,0.13415864]
[1753894918111,0.0636,118010.0,118000.0,0.17807]
[1753894919107,0.06364858,118020.0,118000.0,0.18301]
[1753894919329,0.06364858,118020.0,118000.0,0.58063942]
[1753894919580,0.03294858,118020.0,118010.0,0.04901]
[1753894920835,0.06364858,118020.0,118010.0,0.04901]
[1753894920989,0.06464858,118020.0,118010.0,0.04901]
[1753894921597,0.06564858,118020.0,118010.0,0.04901]
[1753894922007,0.06464858,118020.0,118010.0,0.04901]
[1753894922230,0.06564858,118020.0,118010.0,0.04603]
[1753894922493,0.509308,118020.0,118000.0,0.17905]
[1753894923775,0.06464858,118020.0,118000.0,0.17905]
[1753894924316,0.06729373,118020.0,118000.0,0.17905]
[1753894924720,0.51195315,118020.0,118000.0,0.17905]
[1753894924932,0.0311,118010.0,118000.0,0.17905]
[1753894925780,0.0311,118010.0,118000.0,0.18101]
[1753894925989,0.50805315,118020.0,118000.0,0.18101]
[1753894926189,0.06174858,118020.0,118000.0,0.18101]
[1753894926379,0.06174858,118020.0,118010.0,0.04603]
[1753894926993,0.505408,118020.0,118010.0,0.04603]
[1753894927167,0.504408,118020.0,118000.0,0.17905]
[1753894927550,0.06074858,118020.0,118000.0,0.18005]
[1753894927796,0.50705315,118020.0,118000.0,0.18105]
[1753894928028,0.504408,118020.0,118000.0,0.18005]
[1753894928226,0.504408,118020.0,118000.0,0.17905]
[1753894928351,0.505408,118020.0,118000.0,0.17905]
[1753894928561,0.506408,118020.0,118000.0,0.17905]
[1753894929290,0.06274858,118020.0,118000.0,0.17905]
[1753894929463,0.06274858,118020.0,118010.0,0.04603]
[1753894929676,0.506408,118020.0,118010.0,0.04603]
[1753894929897,0.506408,118020.0,118000.0,0.17905]
[1753894930704,0.504408,118020.0,118000.0,0.17905]
[1753894931257,0.505408,118020.0,118000.0,0.17905]
[1753894931794,0.506408,118020.0,118000.0,0.17905]
[1753894931949,0.505408,118020.0,118000.0,0.17905]
[1753894932355,0.636528,118020.0,118000.0,0.17905]
[1753894933812,0.636528,118020.0,118000.0,0.21125]
[1753894938619,0.19286858,118020.0,118010.0,0.04603]
[1753894938829,0.13200858,118020.0,118010.0,0.05097]
[1753894939662,0.13465373,118020.0,118010.0,0.05097]
[1753894939859,0.16745373,118020.0,118010.0,0.04901]
[1753894940517,0.60911315,118020.0,118010.0,0.04901]
[1753894940733,0.607468,118020.0,118010.0,0.04901]
[1753894940929,0.608468,118020.0,118010.0,0.04901]
[1753894941446,0.66971254,118020.0,118000.0,0.17905]
[1753894941643,0.47445942,118010.0,118000.0,0.17905]
[1753894941861,0.47445942,118010.0,118000.0,0.04901]
[1753894942069,0.44365942,118010.0,118000.0,0.04901]
[1753894942284,0.86671254,118020.0,118000.0,0.04901]
[1753894942482,0.86473254,118020.0,118000.0,0.04901]
[1753894943209,0.44630457,118010.0,118000.0,0.04901]
[1753894943438,0.47535942,118010.0,117990.0,0.21083]
[1753894944000,0.50735942,118010.0,117990.0,0.21083]
[1753894944420,0.50735942,118010.0,118000.0,0.001]
[1753894944621,0.53700396,118010.0,118000.0,0.001]
[1753894944943,0.53700396,118010.0,117990.0,0.08191]
[1753894945141,0.53700396,118010.0,117990.0,0.05101]
[1753894945524,0.53700396,118010.0,117990.0,0.07971]
[1753894945881,0.53700396,118010.0,118000.0,0.002]
[1753894945882,0.53502396,118010.0,118000.0,0.002]
[1753894947168,0.50302396,118010.0,118000.0,0.044]
[1753894947801,0.47535942,118010.0,118000.0,0.044]
[1753894948327,0.47535942,118010.0,118000.0,0.05297988]
[1753894948549,0.47535942,118010.0,118000.0,0.05719988]
[1753894948744,0.47535942,118010.0,118000.0,0.04922]
[1753894950181,0.44365942,118010.0,118000.0,0.04922]
[1753894950548,5.0,118010.0,118000.0,0.04922]
[1753894950929,0.84621049,118020.0,118000.0,0.04922]
[1753894951149,0.00264515,118010.0,118000.0,0.04922]
[1753894952180,0.44630457,118010.0,118000.0,0.04822]
[1753894952390,0.44365942,118010.0,118000.0,0.04822]
[1753894954051,5.44365942,118010.0,118000.0,0.04822]
[1753894954200,0.44365942,118010.0,118000.0,0.04822]
[1753894955052,0.44365942,118010.0,118000.0,0.04922]
[1753894958968,0.39407858,118020.0,118000.0,0.04922]
[1753894959176,0.57614457,118010.0,118000.0,0.08725388]
[1753894959405,0.12984,118010.0,118000.0,0.08924388]
[1753894959935,0.12984,118010.0,118000.0,0.08824388]
[1753894960551,5.0,118010.0,118000.0,0.08824388]
[1753894960752,0.12984,118010.0,118000.0,0.11621]
[1753894960967,0.1298,118010.0,118000.0,0.56086942]
[1753894961206,0.12984858,118020.0,118000.0,0.56086942]
[1753894961338,0.12984858,118020.0,118010.0,0.066]
[1753894961542,0.12984858,118020.0,118010.0,0.11521]
[1753894962507,0.12984858,118020.0,118010.0,0.55886942]
[1753894962705,0.13084858,118020.0,118010.0,0.11521]
[1753894962924,0.12984858,118020.0,118010.0,0.11521]
[1753894963323,0.13084858,118020.0,118010.0,0.11521]
[1753894964119,0.13184858,118020.0,118010.0,0.11521]
[1753894967939,0.00204858,118020.0,118010.0,0.11521]
[1753894968313,0.00204858,118020.0,118010.0,0.55886942]
[1753894968512,0.00204858,118020.0,118010.0,0.11521]
[1753894974373,0.445708,118020.0,118010.0,0.11521]
[1753894974789,0.49700125,118020.0,118000.0,0.24192]
[1753894975067,0.60100396,118010.0,118000.0,0.11232]
[1753894975271,0.60100396,118010.0,118000.0,0.11431]
[1753894975714,0.60100396,118010.0,118000.0,0.08181]
[1753894976067,0.57333942,118010.0,118000.0,0.08181]
[1753894977179,0.57333942,118010.0,118000.0,0.07982]
[1753894977561,0.57333942,118010.0,118000.0,0.08082]
[1753894977950,0.57333942,118010.0,118000.0,0.08182]
[1753894980666,0.57333942,118010.0,118000.0,0.002]
[1753894980870,0.63370396,118010.0,118000.0,0.002]
[1753894981461,0.64217717,118010.0,118000.0,0.002]
[1753894981679,0.9394975,118010.0,118000.0,0.002]
[1753894981881,6.489551,118010.0,118000.0,0.002]
[1753894982098,7.01819004,118010.0,118000.0,0.002]
[1753894982517,6.55090191,118010.0,118000.0,0.002]
[1753894982749,6.55090191,118010.0,118000.0,0.001]
[1753894982953,6.55290191,118010.0,118000.0,0.001]
[1753894983157,1.55290191,118010.0,118000.0,0.001]
[1753894983363,6.55290191,118010.0,118000.0,0.001]
[1753894983571,0.41974821,118000.0,117980.0,0.04403]
[1753894983774,0.57610457,117990.0,117980.0,0.047]
[1753894983954,0.57345942,117990.0,117980.0,0.047]
[1753894985426,0.57445942,117990.0,117980.0,0.047]
[1753894986200,0.57545942,117990.0,117980.0,0.047]
[1753894987162,0.57545942,117990.0,117980.0,0.04403]
[1753894987397,0.63735942,117990.0,117970.0,0.03367]
[1753894987601,0.57545942,117990.0,117970.0,0.1096]
[1753894987769,0.57545942,117990.0,117970.0,0.06557]
[1753894987919,0.91545942,117990.0,117980.0,0.047]
[1753894988150,0.91445942,117990.0,117980.0,0.047]
[1753894988587,0.91545942,117990.0,117980.0,0.047]
[1753894988786,0.91445942,117990.0,117980.0,0.047]
[1753894989242,0.91445942,117990.0,117980.0,0.04897]
[1753894989496,0.78465942,117990.0,117980.0,0.122057]
[1753894989712,0.91337942,117990.0,117980.0,0.122057]
[1753894989956,0.46972,117990.0,117980.0,0.122057]
[1753894990155,0.47072,117990.0,117980.0,0.122057]
[1753894990474,0.46972,117990.0,117980.0,0.08307]
[1753894990932,0.47072,117990.0,117980.0,0.08307]
[1753894991122,0.91437942,117990.0,117980.0,0.08307]
[1753894991864,0.47072,117990.0,117980.0,0.08307]
[1753894992160,0.91437942,117990.0,117980.0,0.08307]
[1753894994189,0.78465942,117990.0,117980.0,0.08307]
[1753894994407,0.91429942,117990.0,117980.0,0.08307]
[1753894995953,0.91429942,117990.0,117980.0,0.094567]
[1753894996174,0.91429942,117990.0,117980.0,0.11417]
[1753894998636,0.13064,117990.0,117980.0,0.11417]
[1753894998788,0.57694457,117990.0,117980.0,0.11417]
[1753894999022,0.57429942,117990.0,117980.0,0.11417]
[1753894999616,0.63064,117990.0,117980.0,0.11417]
[1753894999828,0.57429942,117990.0,117980.0,0.11417]
[1753895000636,0.57429942,117990.0,117980.0,0.08307]
[1753895003344,0.57429942,117990.0,117980.0,0.0811]
[1753895003552,0.59921227,117990.0,117980.0,0.048]
[1753895004018,0.57429942,117990.0,117980.0,0.048]
[1753895005413,0.57429942,117990.0,117980.0,0.0795]
[1753895008027,0.57429942,117990.0,117980.0,0.048]
[1753895009081,0.91429942,117990.0,117980.0,0.001]
[1753895009403,0.91429942,117990.0,117980.0,0.0428]
[1753895013964,0.91429942,117990.0,117980.0,0.04595]
[1753895014215,0.91429942,117990.0,117980.0,0.07675]
[1753895014823,0.86945932,117990.0,117980.0,0.07675]
[1753895015937,0.46936,117990.0,117980.0,0.07675]
[1753895016138,0.91301942,117990.0,117980.0,0.087575]
[1753895017009,0.46932,117990.0,117980.0,0.121915]
[1753895018448,0.46932,117990.0,117980.0,0.11109]
[1753895018580,0.46932,117990.0,117980.0,0.07879]
[1753895020352,0.46932,117990.0,117980.0,0.10929]
[1753895024244,0.91297942,117990.0,117980.0,0.10929]
[1753895027006,0.80180819,117990.0,117980.0,0.10929]
[1753895027785,0.46928,117990.0,117980.0,0.10929]
[1753895027972,0.80176819,117990.0,117980.0,0.10929]
[1753895029568,0.80176819,117990.0,117980.0,0.07879]
[1753895032489,0.80176819,117990.0,117980.0,0.11179]
[1753895032741,0.46928,117990.0,117980.0,0.11179]
[1753895032916,0.80176819,117990.0,117980.0,0.11179]
[1753895033407,5.46928,118000.0,117990.0,0.0616]
[1753895033626,0.80176819,118000.0,117990.0,0.06364]
[1753895033810,0.80176819,118000.0,117990.0,0.10859]
[1753895034664,0.80276819,118000.0,117990.0,0.10859]
[1753895034868,0.47028,118000.0,117990.0,0.10859]
[1753895035081,0.47128,118000.0,117990.0,0.10859]
[1753895035946,0.99896024,118000.0,117990.0,0.10859]
[1753895036393,0.5557573,118000.0,117990.0,0.10859]
[1753895036937,0.3654245,117990.0,117980.0,0.04572]
[1753895037169,0.95709698,117990.0,117980.0,0.0312]
[1753895037725,0.95709698,117990.0,117980.0,0.07378]
[1753895038453,0.96557198,117990.0,117980.0,0.04358]
[1753895038723,1.00694713,117990.0,117980.0,0.001]
[1753895039267,0.99847198,117990.0,117980.0,0.001]
[1753895039912,1.00694713,117990.0,117980.0,0.001]
[1753895040314,0.99847198,117990.0,117980.0,0.001]
[1753895040536,5.95709698,117990.0,117980.0,0.001]
[1753895040735,5.93790744,117990.0,117980.0,0.001]
[1753895040952,5.94638259,117990.0,117980.0,0.001]
[1753895041178,5.97908259,117990.0,117980.0,0.001]
[1753895041382,5.97060744,117990.0,117980.0,0.001]
[1753895041637,5.97908251,117990.0,117980.0,0.001]
[1753895042230,5.63060787,117990.0,117980.0,0.001]
[1753895042431,5.63908251,117990.0,117980.0,0.001]
[1753895043011,5.63060744,117990.0,117980.0,0.001]
[1753895043435,5.84058848,117990.0,117980.0,0.001]
[1753895043635,5.67955781,117990.0,117980.0,0.001]
[1753895044397,5.98755781,117990.0,117980.0,0.001]
[1753895044792,5.97060744,117990.0,117980.0,0.001]
[1753895046523,5.97060751,117990.0,117980.0,0.001]
[1753895046868,5.92943244,117990.0,117980.0,0.001]
[1753895047043,5.93790744,117990.0,117980.0,0.001]
[1753895047991,5.92943244,117990.0,117980.0,0.001]
[1753895048462,5.93790744,117990.0,117980.0,0.001]
[1753895048832,6.27513934,117990.0,117980.0,0.001]
[1753895049033,6.10563403,117990.0,117980.0,0.001]
[1753895049286,6.29786506,117990.0,117980.0,0.001]
[1753895049529,1.3255296,117990.0,117980.0,0.001]
[1753895049756,6.3255296,117990.0,117980.0,0.001]
[1753895050874,6.35813233,117990.0,117980.0,0.001]
[1753895051506,6.55813233,117990.0,117980.0,0.001]
[1753895051745,0.54,117970.0,117960.0,0.07632]
[1753895051957,1.11248294,117970.0,117960.0,0.07842]
[1753895053029,1.11248294,117970.0,117960.0,0.07846855]
[1753895053264,1.11248294,117970.0,117960.0,0.07946855]
[1753895053479,1.19696024,117970.0,117960.0,0.07736855]
[1753895054342,1.11248294,117970.0,117960.0,0.07736855]
[1753895056657,6.11248294,117970.0,117960.0,0.07736855]
[1753895058658,5.66928,117970.0,117960.0,0.07736855]
[1753895058855,6.11248294,117970.0,117960.0,0.07736855]
[1753895059950,6.11248294,117970.0,117960.0,0.10956855]
[1753895060331,6.11248294,117970.0,117960.0,0.07946855]
[1753895062523,6.11248294,117970.0,117960.0,0.11006855]
[1753895064926,5.66928,117970.0,117960.0,0.11006855]
[1753895066230,6.11248294,117970.0,117960.0,0.11006855]
[1753895070850,6.11248294,117970.0,117960.0,0.00104855]
[1753895071032,6.19696024,117970.0,117960.0,0.00104855]
[1753895071233,6.19696024,117970.0,117960.0,0.07744855]
[1753895071409,6.19696024,117970.0,117960.0,0.08048855]
[1753895071619,6.11248294,117970.0,117960.0,0.11068855]